Workbook

Sheet ConCal
B1: Contrast Volume | D1: Chaser Volume | F1: Injection rate
B2: =IF(AND(DeBug!A6<=SiteRules!B5,DeBug!A6>=SiteRules!B6),DeBug!A6,IF(DeBug!A6>SiteRules!B5,SiteRules!B5,SiteRules!B6)) -> 69 | D2: =VLOOKUP(A8,Protocols!A6:B100,2,FALSE) -> 50 | F2: =IF(AND(DeBug!A10<=SiteRules!B3,DeBug!A10>=SiteRules!B4),DeBug!A10,IF(DeBug!A6>SiteRules!B3,SiteRules!B3,SiteRules!B4)) -> 3
B5: ml or cc | D5: ml or cc | F5: ml/s or cc/s
A7: Protocol Name/type [select from list]
A8: Weight Based Routine Adult
E9: Patient Is roughly a
A10: Patient Weight [free text] | E10: =IF(IF(DeBug!A13=2,ConCal!A11,ConCal!A11*0.453592)<11,"newborn or baby", IF(IF(DeBug!A13=2,ConCal!A11,ConCal!A11*0.453592)<30,"toddler or child", IF(IF(DeBug!A13=2,ConCal!A11,ConCal!A11*0.453592)<40,"teen", IF(IF(DeBug!A13=2,ConCal!A11,ConCal!A11*0.453592)<50,"small adult", IF(IF(DeBug!A13=2,ConCal!A11,ConCal!A11*0.453592)<68,"average adult", IF(IF(DeBug!A13=2,ConCal!A11,ConCal!A11*0.453592)<80,"slightly large adult", IF(IF(DeBug!A13=2,ConCal!A11,ConCal!A11*0.453592)<94,"obese adult","very obese adult"))))))) -> average adult
A11: 131
A13: Concentration (mgI/cc or mgI/ml) [select from list]
A14: 350
A16: Simple conversion calculations
B18: This volume | C18: at this strength | D18: equals | E18: This volume | F18: at this strength
B20: Conserves total Iodine load
A21: Contrast delivery dynamics section
A22: Use this section to ensure you are not still injecting contrast while scanning
A23: Scan Delay (seconds) [free text]
A24: 60
A25: Your scan will start | B25: =A24-B27 -> 37 | C25: seconds after contrast agent has finished injecting
A26: Your total (contrast + chaser) injection time is | B26: =ROUND(B2/F2+(D2-B28)/F2,0) -> 33 | C26: seconds
A27: You will inject contrast for | B27: =ROUND(B2/F2,0) -> 23 | C27: seconds
A28: We assume | B28: 20 | C28: (ml or cc) of chaser will be used for a test injection
A29: Copyright 2020 University of Wisconsin Department of Radiology, Tim Szczykutowicz Ph.D.
A40: 446

Sheet CheatSheet
C3: If your protocol says to use 300 but you have 350
C4: Volume at 300 | D4: Volume at 350
C5: 50 | D5: =ROUND(C5*300/350,0) -> 43
C6: 75 | D6: =ROUND(C6*300/350,0) -> 64
C7: 100 | D7: =ROUND(C7*300/350,0) -> 86
C8: 125 | D8: =ROUND(C8*300/350,0) -> 107
C9: 150 | D9: =ROUND(C9*300/350,0) -> 129
C14: If your protocol says to use 370 but you have 350
C15: Volume at 370 | D15: Volume at 350
C16: 50 | D16: =ROUND(C16*370/350,0) -> 53
C17: 75 | D17: =ROUND(C17*370/350,0) -> 79
C18: 100 | D18: =ROUND(C18*370/350,0) -> 106
C19: 125 | D19: =ROUND(C19*370/350,0) -> 132
C20: 150 | D20: =ROUND(C20*370/350,0) -> 159

Sheet SiteRules
A1: Limits for fields
D2: only edit the spaces inside the gray boxes
A3: max flow rate (ml/s or cc/s) | B3: 5.5 | D3: these should reflect site specific rules for all protocols
A4: min flow rate (ml/s or cc/s) | B4: 0.5
A5: max contrast volume (ml or cc) | B5: 150
A6: min contrast volume (ml or cc) | B6: 5

Sheet DeBug
A3: calculations tab | L3: =VLOOKUP(IF(DeBug!A13=2,ConCal!A11,ConCal!A11*0.453592),INDIRECT(VLOOKUP(VLOOKUP(ConCal!$A$8,mappings!H3:I102,2,FALSE),mappings!A3:B102,2,FALSE)),{2,3},TRUE) -> 80.2873 | M3: =VLOOKUP(VLOOKUP(ConCal!$A$8,mappings!H3:I102,2,FALSE),mappings!A3:E102,{4,5},FALSE) -> 0
A5: volume we calculate (may not actually be displayed based on user siterules | L5: =_xlfn.FORECAST.LINEAR(ConCal!E14,VLOOKUP(IF(DeBug!A13=2,ConCal!A11,ConCal!A11*0.453592),INDIRECT(VLOOKUP(VLOOKUP(ConCal!$A$8,mappings!H3:I102,2,FALSE),mappings!A3:B102,2,FALSE)),{2,3},TRUE),VLOOKUP(VLOOKUP(ConCal!$A$8,mappings!H3:I102,2,FALSE),mappings!A3:E102,{4,5},FALSE)) -> 
A6: =IF(VLOOKUP(ConCal!A8,Protocols!A6:D100,4,FALSE)=1, ROUND(IF(ConCal!E14>=VLOOKUP(VLOOKUP(ConCal!$A$8,mappings!H3:I102,2,FALSE),mappings!A3:D102,4,FALSE),VLOOKUP(ROUND(IF(DeBug!A13=2,ConCal!A11,ConCal!A11*0.453592),1),INDIRECT(VLOOKUP(VLOOKUP(ConCal!A8,mappings!H3:I102,2,FALSE),mappings!A3:B102,2,FALSE)),2,TRUE)/ConCal!A14*VLOOKUP(VLOOKUP(ConCal!A8,mappings!H3:I102,2,FALSE),mappings!A3:C102,3,FALSE),IF(ConCal!E14<=VLOOKUP(VLOOKUP(ConCal!$A$8,mappings!H3:I102,2,FALSE),mappings!A3:E102,5,FALSE),VLOOKUP(ROUND(IF(DeBug!A13=2,ConCal!A11,ConCal!A11*0.453592),1),INDIRECT(VLOOKUP(VLOOKUP(ConCal!A8,mappings!H3:I102,2,FALSE),mappings!A3:B102,2,FALSE)),3,TRUE)/ConCal!A14*VLOOKUP(VLOOKUP(ConCal!A8,mappings!H3:I102,2,FALSE),mappings!A3:C102,3,FALSE),_xlfn.FORECAST.LINEAR(ConCal!E14,VLOOKUP(IF(DeBug!A13=2,ConCal!A11,ConCal!A11*0.453592),INDIRECT(VLOOKUP(VLOOKUP(ConCal!$A$8,mappings!H3:I102,2,FALSE),mappings!A3:B102,2,FALSE)),{2,3},TRUE),VLOOKUP(VLOOKUP(ConCal!$A$8,mappings!H3:I102,2,FALSE),mappings!A3:E102,{4,5},FALSE)))),0), ROUND(VLOOKUP(ROUND(IF(DeBug!A13=2,ConCal!A11,ConCal!A11*0.453592),1),INDIRECT(VLOOKUP(VLOOKUP(ConCal!A8,mappings!H3:I102,2,FALSE),mappings!A3:B102,2,FALSE)),2,TRUE)/ConCal!A14*VLOOKUP(VLOOKUP(ConCal!A8,mappings!H3:I102,2,FALSE),mappings!A3:C102,3,FALSE),0)) -> 69
A9: flow rate we calculate (may not actually be displayed based on user siterules
A10: =IF(VLOOKUP(ConCal!A8,Protocols!A6:D100,4,FALSE)=1, ROUND(IF(ConCal!B2/ConCal!E14<VLOOKUP(IF(DeBug!A13=2,ConCal!A11,ConCal!A11*0.453592),INDIRECT(VLOOKUP(VLOOKUP(ConCal!$A$8,mappings!H3:I102,2,FALSE),mappings!A3:B102,2,FALSE)),4,TRUE),ConCal!B2/ConCal!E14,VLOOKUP(IF(DeBug!A13=2,ConCal!A11,ConCal!A11*0.453592),INDIRECT(VLOOKUP(VLOOKUP(ConCal!$A$8,mappings!H3:I102,2,FALSE),mappings!A3:B102,2,FALSE)),4,TRUE)),1), IF(VLOOKUP(ConCal!A8,Protocols!A6:E100,5,FALSE)=3,VLOOKUP(IF(DeBug!A13=2,ConCal!A11,ConCal!A11*0.453592),INDIRECT(VLOOKUP(VLOOKUP(ConCal!$A$8,mappings!H3:I102,2,FALSE),mappings!A3:B102,2,FALSE)),3,TRUE),VLOOKUP(ConCal!$A$8,Protocols!A6:C100,3,FALSE))) -> 3
A12: this cell below is where the radio buttons link to, 1 is lbs, 2 is kg
A13: 1
A17: the cell below is 1 when the protocol selected is an angio protocol
A18: =VLOOKUP(ConCal!A8,Protocols!A6:D100,4,FALSE) -> 0
A21: this is where the "special flag" output goes
A22: =VLOOKUP(ConCal!A8,Protocols!A6:E100,5,FALSE) -> 1
A24: patient weight in kg
A25: =IF(DeBug!A13=2,ConCal!A11,ConCal!A11*0.453592) -> 59.420552

Sheet Protocols
A1: Special flags: 1= a protocol that needs to have the default wieght choice moved to lbs, 2 = a protocol that needs to have the default weight choice moved to kg, 3 = a protocol that has changing flow rate with weight but is not a angio protocol
A4: all of these parms go together | I4: this list just populates the choices for IV constrast strength, values here have NO correspondence with the left side of this sheet
A5: Names of protocols and protocol types (up to 100) | B5: Chaser amount for saline (cc or ml) | C5: Default Flow Rate (ml/s or cc/s) (blank if angio flag is 1) | D5: Angio protocol? | E5: special flags | I5: Contrast Strength
A6: Weight Based Routine Adult | B6: 50 | C6: 3 | E6: 1 | I6: 300
A7: Weight Based Routine Ped | B7: 30 | C7: 1.5 | E7: 2 | I7: 320
A8: Weight Based Angio | B8: 60 | D8: 1 | E8: 1 | I8: 350
A9: U Washington Abdomen | B9: 50 | E9: 3 | I9: 370

Sheet SizeImages
A1: newborn or baby | F1: =IFS(IF(A33=2,C8,C8*0.453592)<20,"newborn or baby",IF(A33=2,C8,C8*0.453592)<40,"toddler or child",IF(A33=2,C8,C8*0.453592)<80,"teen",IF(A33=2,C8,C8*0.453592)<100,"small adult",IF(A33=2,C8,C8*0.453592)<120,"average adult",IF(A33=2,C8,C8*0.453592)<150,"slightly large adult",IF(A33=2,C8,C8*0.453592)<200,"obese adult",IF(A33=2,C8,C8*0.453592)<250,"very obese adult") -> 
A2: toddler or child
A3: teen
A4: small adult
A5: average adult
A6: slightly large adult
A7: obese adult
A8: very obese adult

Sheet weight2Volume
A3: Here we list tables of weight (kg and lbs ) to contrast volume in mg I /cc
A4: We anticipate we can have more than one protocol name/type using the same look up table, so use the tab labelled "mapping" to map protocol names/types to LUT ranges
E6: LUT 2 (uses 2 ml/kg 0-40, 80 40-65 than p3t above 65kg) | I6: LUT 3 | M6: LUT 4 (based on p3ta <88 lbs, 350 conc) | R6: LUT5 (uwash body) at 350 conc
E7: lbs | F7: kg | G7: volume | I7: kg | J7: volume | L7: lbs | M7: kg | N7: max volume | O7: min volume | P7: rate max | R7: lbs | S7: kg | T7: volume | U7: rate
E8: 0 | F8: =E8*0.453592 -> 0 | G8: =2*F8 -> 0 | I8: 0 | J8: 100 | L8: 0 | M8: =L8*0.453592 -> 0 | N8: 57 | O8: 46 | P8: 3.6 | R8: 0 | S8: =R8*0.453592 -> 0 | T8: 100 | U8: 2
E9: 1 | F9: 0.453592 | G9: =2*F9 -> 0.907184 | I9: 1 | J9: 100 | L9: 1 | M9: =L9*0.453592 -> 0.453592 | N9: 57 | O9: 46 | P9: 3.6 | R9: 1 | S9: =R9*0.453592 -> 0.453592 | T9: 100 | U9: 2
E10: 2 | F10: 0.907184 | G10: 1.814368 | I10: 2 | J10: 100 | L10: 2 | M10: 0.907184 | N10: 57 | O10: 46 | P10: 3.6 | R10: 2 | S10: 0.907184 | T10: 100 | U10: 2
E11: 3 | F11: 1.360776 | G11: 2.721552 | I11: 3 | J11: 100 | L11: 3 | M11: 1.360776 | N11: 57 | O11: 46 | P11: 3.6 | R11: 3 | S11: 1.360776 | T11: 100 | U11: 2
E12: 4 | F12: 1.814368 | G12: 3.628736 | I12: 4 | J12: 100 | L12: 4 | M12: 1.814368 | N12: 57 | O12: 46 | P12: 3.6 | R12: 4 | S12: 1.814368 | T12: 100 | U12: 2
E13: 5 | F13: 2.26796 | G13: 4.53592 | I13: 5 | J13: 100 | L13: 5 | M13: 2.26796 | N13: 57 | O13: 46 | P13: 3.6 | R13: 5 | S13: 2.26796 | T13: 100 | U13: 2
E14: 6 | F14: 2.721552 | G14: 5.443104 | I14: 6 | J14: 100 | L14: 6 | M14: 2.721552 | N14: 57 | O14: 46 | P14: 3.6 | R14: 6 | S14: 2.721552 | T14: 100 | U14: 2
E15: 7 | F15: 3.175144 | G15: 6.350288 | I15: 7 | J15: 100 | L15: 7 | M15: 3.175144 | N15: 57 | O15: 46 | P15: 3.6 | R15: 7 | S15: 3.175144 | T15: 100 | U15: 2
E16: 8 | F16: 3.628736 | G16: 7.257472 | I16: 8 | J16: 100 | L16: 8 | M16: 3.628736 | N16: 57 | O16: 46 | P16: 3.6 | R16: 8 | S16: 3.628736 | T16: 100 | U16: 2
E17: 9 | F17: 4.082328 | G17: 8.164656 | I17: 9 | J17: 100 | L17: 9 | M17: 4.082328 | N17: 57 | O17: 46 | P17: 3.6 | R17: 9 | S17: 4.082328 | T17: 100 | U17: 2
E18: 10 | F18: 4.53592 | G18: 9.07184 | I18: 10 | J18: 100 | L18: 10 | M18: 4.53592 | N18: 57 | O18: 46 | P18: 3.6 | R18: 10 | S18: 4.53592 | T18: 100 | U18: 2
E19: 11 | F19: 4.989512 | G19: 9.979024 | I19: 11 | J19: 100 | L19: 11 | M19: 4.989512 | N19: 57 | O19: 46 | P19: 3.6 | R19: 11 | S19: 4.989512 | T19: 100 | U19: 2
E20: 12 | F20: 5.443104 | G20: 10.886208 | I20: 12 | J20: 100 | L20: 12 | M20: 5.443104 | N20: 57 | O20: 46 | P20: 3.6 | R20: 12 | S20: 5.443104 | T20: 100 | U20: 2
E21: 13 | F21: 5.896696 | G21: 11.793392 | I21: 13 | J21: 100 | L21: 13 | M21: 5.896696 | N21: 57 | O21: 46 | P21: 3.6 | R21: 13 | S21: 5.896696 | T21: 100 | U21: 2
E22: 14 | F22: 6.350288 | G22: 12.700576 | I22: 14 | J22: 100 | L22: 14 | M22: 6.350288 | N22: 57 | O22: 46 | P22: 3.6 | R22: 14 | S22: 6.350288 | T22: 100 | U22: 2
E23: 15 | F23: 6.80388 | G23: 13.60776 | I23: 15 | J23: 100 | L23: 15 | M23: 6.80388 | N23: 57 | O23: 46 | P23: 3.6 | R23: 15 | S23: 6.80388 | T23: 100 | U23: 2
A24: LUT 1 | B24: (from med rad p3t, 300 conc) | E24: 16 | F24: 7.257472 | G24: 14.514944 | I24: 16 | J24: 100 | L24: 16 | M24: 7.257472 | N24: 57 | O24: 46 | P24: 3.6 | R24: 16 | S24: 7.257472 | T24: 100 | U24: 2
A25: 0 | B25: =A25*0.453592 -> 0 | C25: 80 | E25: 17 | F25: 7.711064 | G25: 15.422128 | I25: 17 | J25: 100 | L25: 17 | M25: 7.711064 | N25: 57 | O25: 46 | P25: 3.6 | R25: 17 | S25: 7.711064 | T25: 100 | U25: 2
A26: 1 | B26: =A26*0.453592 -> 0.453592 | C26: 80 | E26: 18 | F26: 8.164656 | G26: 16.329312 | I26: 18 | J26: 100 | L26: 18 | M26: 8.164656 | N26: 57 | O26: 46 | P26: 3.6 | R26: 18 | S26: 8.164656 | T26: 100 | U26: 2
A27: 2 | B27: 0.907184 | C27: 80 | E27: 19 | F27: 8.618248 | G27: 17.236496 | I27: 19 | J27: 100 | L27: 19 | M27: 8.618248 | N27: 57 | O27: 46 | P27: 3.6 | R27: 19 | S27: 8.618248 | T27: 100 | U27: 2
A28: 3 | B28: 1.360776 | C28: 80 | E28: 20 | F28: 9.07184 | G28: 18.14368 | I28: 20 | J28: 100 | L28: 20 | M28: 9.07184 | N28: 57 | O28: 46 | P28: 3.6 | R28: 20 | S28: 9.07184 | T28: 100 | U28: 2
A29: 4 | B29: 1.814368 | C29: 80 | E29: 21 | F29: 9.525432 | G29: 19.050864 | I29: 21 | J29: 100 | L29: 21 | M29: 9.525432 | N29: 57 | O29: 46 | P29: 3.6 | R29: 21 | S29: 9.525432 | T29: 100 | U29: 2
A30: 5 | B30: 2.26796 | C30: 80 | E30: 22 | F30: 9.979024 | G30: 19.958048 | I30: 22 | J30: 100 | L30: 22 | M30: 9.979024 | N30: 57 | O30: 46 | P30: 3.6 | R30: 22 | S30: 9.979024 | T30: 100 | U30: 2
A31: 6 | B31: 2.721552 | C31: 80 | E31: 23 | F31: 10.432616 | G31: 20.865232 | I31: 23 | J31: 100 | L31: 23 | M31: 10.432616 | N31: 57 | O31: 46 | P31: 3.6 | R31: 23 | S31: 10.432616 | T31: 100 | U31: 2
A32: 7 | B32: 3.175144 | C32: 80 | E32: 24 | F32: 10.886208 | G32: 21.772416 | I32: 24 | J32: 100 | L32: 24 | M32: 10.886208 | N32: 57 | O32: 46 | P32: 3.6 | R32: 24 | S32: 10.886208 | T32: 100 | U32: 2
A33: 8 | B33: 3.628736 | C33: 80 | E33: 25 | F33: 11.3398 | G33: 22.6796 | I33: 25 | J33: 100 | L33: 25 | M33: 11.3398 | N33: 57 | O33: 46 | P33: 3.6 | R33: 25 | S33: 11.3398 | T33: 100 | U33: 2
A34: 9 | B34: 4.082328 | C34: 80 | E34: 26 | F34: 11.793392 | G34: 23.586784 | I34: 26 | J34: 100 | L34: 26 | M34: 11.793392 | N34: 57 | O34: 46 | P34: 3.6 | R34: 26 | S34: 11.793392 | T34: 100 | U34: 2
A35: 10 | B35: 4.53592 | C35: 80 | E35: 27 | F35: 12.246984 | G35: 24.493968 | I35: 27 | J35: 100 | L35: 27 | M35: 12.246984 | N35: 57 | O35: 46 | P35: 3.6 | R35: 27 | S35: 12.246984 | T35: 100 | U35: 2
A36: 11 | B36: 4.989512 | C36: 80 | E36: 28 | F36: 12.700576 | G36: 25.401152 | I36: 28 | J36: 100 | L36: 28 | M36: 12.700576 | N36: 57 | O36: 46 | P36: 3.6 | R36: 28 | S36: 12.700576 | T36: 100 | U36: 2
A37: 12 | B37: 5.443104 | C37: 80 | E37: 29 | F37: 13.154168 | G37: 26.308336 | I37: 29 | J37: 100 | L37: 29 | M37: 13.154168 | N37: 57 | O37: 46 | P37: 3.6 | R37: 29 | S37: 13.154168 | T37: 100 | U37: 2
A38: 13 | B38: 5.896696 | C38: 80 | E38: 30 | F38: 13.60776 | G38: 27.21552 | I38: 30 | J38: 100 | L38: 30 | M38: 13.60776 | N38: 57 | O38: 46 | P38: 3.6 | R38: 30 | S38: 13.60776 | T38: 100 | U38: 2
A39: 14 | B39: 6.350288 | C39: 80 | E39: 31 | F39: 14.061352 | G39: 28.122704 | I39: 31 | J39: 100 | L39: 31 | M39: 14.061352 | N39: 57 | O39: 46 | P39: 3.6 | R39: 31 | S39: 14.061352 | T39: 100 | U39: 2
A40: 15 | B40: 6.80388 | C40: 80 | E40: 32 | F40: 14.514944 | G40: 29.029888 | I40: 32 | J40: 100 | L40: 32 | M40: 14.514944 | N40: 57 | O40: 46 | P40: 3.6 | R40: 32 | S40: 14.514944 | T40: 100 | U40: 2
A41: 16 | B41: 7.257472 | C41: 80 | E41: 33 | F41: 14.968536 | G41: 29.937072 | I41: 33 | J41: 100 | L41: 33 | M41: 14.968536 | N41: 57 | O41: 46 | P41: 3.6 | R41: 33 | S41: 14.968536 | T41: 100 | U41: 2
A42: 17 | B42: 7.711064 | C42: 80 | E42: 34 | F42: 15.422128 | G42: 30.844256 | I42: 34 | J42: 100 | L42: 34 | M42: 15.422128 | N42: 57 | O42: 46 | P42: 3.6 | R42: 34 | S42: 15.422128 | T42: 100 | U42: 2
A43: 18 | B43: 8.164656 | C43: 80 | E43: 35 | F43: 15.87572 | G43: 31.75144 | I43: 35 | J43: 100 | L43: 35 | M43: 15.87572 | N43: 57 | O43: 46 | P43: 3.6 | R43: 35 | S43: 15.87572 | T43: 100 | U43: 2
A44: 19 | B44: 8.618248 | C44: 80 | E44: 36 | F44: 16.329312 | G44: 32.658624 | I44: 36 | J44: 100 | L44: 36 | M44: 16.329312 | N44: 57 | O44: 46 | P44: 3.6 | R44: 36 | S44: 16.329312 | T44: 100 | U44: 2
A45: 20 | B45: 9.07184 | C45: 80 | E45: 37 | F45: 16.782904 | G45: 33.565808 | I45: 37 | J45: 100 | L45: 37 | M45: 16.782904 | N45: 57 | O45: 46 | P45: 3.6 | R45: 37 | S45: 16.782904 | T45: 100 | U45: 2
A46: 21 | B46: 9.525432 | C46: 80 | E46: 38 | F46: 17.236496 | G46: 34.472992 | I46: 38 | J46: 100 | L46: 38 | M46: 17.236496 | N46: 57 | O46: 46 | P46: 3.6 | R46: 38 | S46: 17.236496 | T46: 100 | U46: 2
A47: 22 | B47: 9.979024 | C47: 80 | E47: 39 | F47: 17.690088 | G47: 35.380176 | I47: 39 | J47: 100 | L47: 39 | M47: 17.690088 | N47: 57 | O47: 46 | P47: 3.6 | R47: 39 | S47: 17.690088 | T47: 100 | U47: 2
A48: 23 | B48: 10.432616 | C48: 80 | E48: 40 | F48: 18.14368 | G48: 36.28736 | I48: 40 | J48: 100 | L48: 40 | M48: 18.14368 | N48: 57 | O48: 46 | P48: 3.6 | R48: 40 | S48: 18.14368 | T48: 100 | U48: 2
A49: 24 | B49: 10.886208 | C49: 80 | E49: 41 | F49: 18.597272 | G49: 37.194544 | I49: 41 | J49: 100 | L49: 41 | M49: 18.597272 | N49: 57 | O49: 46 | P49: 3.6 | R49: 41 | S49: 18.597272 | T49: 100 | U49: 2
A50: 25 | B50: 11.3398 | C50: 80 | E50: 42 | F50: 19.050864 | G50: 38.101728 | I50: 42 | J50: 100 | L50: 42 | M50: 19.050864 | N50: 57 | O50: 46 | P50: 3.6 | R50: 42 | S50: 19.050864 | T50: 100 | U50: 2
A51: 26 | B51: 11.793392 | C51: 80 | E51: 43 | F51: 19.504456 | G51: 39.008912 | I51: 43 | J51: 100 | L51: 43 | M51: 19.504456 | N51: 57 | O51: 46 | P51: 3.6 | R51: 43 | S51: 19.504456 | T51: 100 | U51: 2
A52: 27 | B52: 12.246984 | C52: 80 | E52: 44 | F52: 19.958048 | G52: 39.916096 | I52: 44 | J52: 100 | L52: 44 | M52: 19.958048 | N52: 57 | O52: 46 | P52: 3.6 | R52: 44 | S52: 19.958048 | T52: 100 | U52: 2
A53: 28 | B53: 12.700576 | C53: 80 | E53: 45 | F53: 20.41164 | G53: 40.82328 | I53: 45 | J53: 100 | L53: 45 | M53: 20.41164 | N53: 57 | O53: 46 | P53: 3.6 | R53: 45 | S53: 20.41164 | T53: 100 | U53: 2
A54: 29 | B54: 13.154168 | C54: 80 | E54: 46 | F54: 20.865232 | G54: 41.730464 | I54: 46 | J54: 100 | L54: 46 | M54: 20.865232 | N54: 57 | O54: 46 | P54: 3.6 | R54: 46 | S54: 20.865232 | T54: 100 | U54: 2
A55: 30 | B55: 13.60776 | C55: 80 | E55: 47 | F55: 21.318824 | G55: 42.637648 | I55: 47 | J55: 100 | L55: 47 | M55: 21.318824 | N55: 57 | O55: 46 | P55: 3.6 | R55: 47 | S55: 21.318824 | T55: 100 | U55: 2
A56: 31 | B56: 14.061352 | C56: 80 | E56: 48 | F56: 21.772416 | G56: 43.544832 | I56: 48 | J56: 100 | L56: 48 | M56: 21.772416 | N56: 57 | O56: 46 | P56: 3.6 | R56: 48 | S56: 21.772416 | T56: 100 | U56: 2
A57: 32 | B57: 14.514944 | C57: 80 | E57: 49 | F57: 22.226008 | G57: 44.452016 | I57: 49 | J57: 100 | L57: 49 | M57: 22.226008 | N57: 57 | O57: 46 | P57: 3.6 | R57: 49 | S57: 22.226008 | T57: 100 | U57: 2
A58: 33 | B58: 14.968536 | C58: 80 | E58: 50 | F58: 22.6796 | G58: 45.3592 | I58: 50 | J58: 100 | L58: 50 | M58: 22.6796 | N58: 57 | O58: 46 | P58: 3.6 | R58: 50 | S58: 22.6796 | T58: 100 | U58: 2
A59: 34 | B59: 15.422128 | C59: 80 | E59: 51 | F59: 23.133192 | G59: 46.266384 | I59: 51 | J59: 100 | L59: 51 | M59: 23.133192 | N59: 57 | O59: 46 | P59: 3.6 | R59: 51 | S59: 23.133192 | T59: 100 | U59: 2
A60: 35 | B60: 15.87572 | C60: 80 | E60: 52 | F60: 23.586784 | G60: 47.173568 | I60: 52 | J60: 100 | L60: 52 | M60: 23.586784 | N60: 57 | O60: 46 | P60: 3.6 | R60: 52 | S60: 23.586784 | T60: 100 | U60: 2
A61: 36 | B61: 16.329312 | C61: 80 | E61: 53 | F61: 24.040376 | G61: 48.080752 | I61: 53 | J61: 100 | L61: 53 | M61: 24.040376 | N61: 57 | O61: 46 | P61: 3.6 | R61: 53 | S61: 24.040376 | T61: 100 | U61: 2
A62: 37 | B62: 16.782904 | C62: 80 | E62: 54 | F62: 24.493968 | G62: 48.987936 | I62: 54 | J62: 100 | L62: 54 | M62: 24.493968 | N62: 57 | O62: 46 | P62: 3.6 | R62: 54 | S62: 24.493968 | T62: 100 | U62: 2
A63: 38 | B63: 17.236496 | C63: 80 | E63: 55 | F63: 24.94756 | G63: 49.89512 | I63: 55 | J63: 100 | L63: 55 | M63: 24.94756 | N63: 57 | O63: 46 | P63: 3.6 | R63: 55 | S63: 24.94756 | T63: 100 | U63: 2
A64: 39 | B64: 17.690088 | C64: 80 | E64: 56 | F64: 25.401152 | G64: 50.802304 | I64: 56 | J64: 100 | L64: 56 | M64: 25.401152 | N64: 57 | O64: 46 | P64: 3.6 | R64: 56 | S64: 25.401152 | T64: 100 | U64: 2
A65: 40 | B65: 18.14368 | C65: 80 | E65: 57 | F65: 25.854744 | G65: 51.709488 | I65: 57 | J65: 100 | L65: 57 | M65: 25.854744 | N65: 57 | O65: 46 | P65: 3.6 | R65: 57 | S65: 25.854744 | T65: 100 | U65: 2
A66: 41 | B66: 18.597272 | C66: 80 | E66: 58 | F66: 26.308336 | G66: 52.616672 | I66: 58 | J66: 100 | L66: 58 | M66: 26.308336 | N66: 57 | O66: 46 | P66: 3.6 | R66: 58 | S66: 26.308336 | T66: 100 | U66: 2
A67: 42 | B67: 19.050864 | C67: 80 | E67: 59 | F67: 26.761928 | G67: 53.523856 | I67: 59 | J67: 100 | L67: 59 | M67: 26.761928 | N67: 57 | O67: 46 | P67: 3.6 | R67: 59 | S67: 26.761928 | T67: 100 | U67: 2
A68: 43 | B68: 19.504456 | C68: 80 | E68: 60 | F68: 27.21552 | G68: 54.43104 | I68: 60 | J68: 100 | L68: 60 | M68: 27.21552 | N68: 57 | O68: 46 | P68: 3.6 | R68: 60 | S68: 27.21552 | T68: 100 | U68: 2
A69: 44 | B69: 19.958048 | C69: 80 | E69: 61 | F69: 27.669112 | G69: 55.338224 | I69: 61 | J69: 100 | L69: 61 | M69: 27.669112 | N69: 57 | O69: 46 | P69: 3.6 | R69: 61 | S69: 27.669112 | T69: 100 | U69: 2
A70: 45 | B70: 20.41164 | C70: 80 | E70: 62 | F70: 28.122704 | G70: 56.245408 | I70: 62 | J70: 100 | L70: 62 | M70: 28.122704 | N70: 57 | O70: 46 | P70: 3.6 | R70: 62 | S70: 28.122704 | T70: 100 | U70: 2
A71: 46 | B71: 20.865232 | C71: 80 | E71: 63 | F71: 28.576296 | G71: 57.152592 | I71: 63 | J71: 100 | L71: 63 | M71: 28.576296 | N71: 57 | O71: 46 | P71: 3.6 | R71: 63 | S71: 28.576296 | T71: 100 | U71: 2
A72: 47 | B72: 21.318824 | C72: 80 | E72: 64 | F72: =E72*0.453592 -> 29.029888 | G72: 58.059776 | I72: 64 | J72: 100 | L72: 64 | M72: 29.029888 | N72: 57 | O72: 46 | P72: 3.6 | R72: 64 | S72: 29.029888 | T72: 100 | U72: 2
A73: 48 | B73: 21.772416 | C73: 80 | E73: 65 | F73: 29.48348 | G73: =2*F73 -> 58.96696 | I73: 65 | J73: 100 | L73: 65 | M73: =L73*0.453592 -> 29.48348 | N73: 57 | O73: 46 | P73: 3.6 | R73: 65 | S73: =R73*0.453592 -> 29.48348 | T73: 100 | U73: 2
A74: 49 | B74: 22.226008 | C74: 80 | E74: 66 | F74: 29.937072 | G74: 59.874144 | I74: 66 | J74: 100 | L74: 66 | M74: 29.937072 | N74: 57 | O74: 46 | P74: 3.6 | R74: 66 | S74: 29.937072 | T74: 100 | U74: 2
A75: 50 | B75: 22.6796 | C75: 80 | E75: 67 | F75: 30.390664 | G75: 60.781328 | I75: 67 | J75: 100 | L75: 67 | M75: 30.390664 | N75: 57 | O75: 46 | P75: 3.6 | R75: 67 | S75: 30.390664 | T75: 100 | U75: 2
A76: 51 | B76: 23.133192 | C76: 80 | E76: 68 | F76: 30.844256 | G76: 61.688512 | I76: 68 | J76: 100 | L76: 68 | M76: 30.844256 | N76: 57 | O76: 46 | P76: 3.6 | R76: 68 | S76: 30.844256 | T76: 100 | U76: 2
A77: 52 | B77: 23.586784 | C77: 80 | E77: 69 | F77: 31.297848 | G77: 62.595696 | I77: 69 | J77: 125 | L77: 69 | M77: 31.297848 | N77: 57 | O77: 46 | P77: 3.6 | R77: 69 | S77: 31.297848 | T77: 100 | U77: 2
A78: 53 | B78: 24.040376 | C78: 80 | E78: 70 | F78: 31.75144 | G78: 63.50288 | I78: 70 | J78: 125 | L78: 70 | M78: 31.75144 | N78: 57 | O78: 46 | P78: 3.6 | R78: 70 | S78: 31.75144 | T78: 100 | U78: 2
A79: 54 | B79: 24.493968 | C79: 80 | E79: 71 | F79: 32.205032 | G79: 64.410064 | I79: 71 | J79: 125 | L79: 71 | M79: 32.205032 | N79: 57 | O79: 46 | P79: 3.6 | R79: 71 | S79: 32.205032 | T79: 100 | U79: 2
A80: 55 | B80: 24.94756 | C80: 80 | E80: 72 | F80: 32.658624 | G80: 65.317248 | I80: 72 | J80: 125 | L80: 72 | M80: 32.658624 | N80: 57 | O80: 46 | P80: 3.6 | R80: 72 | S80: 32.658624 | T80: 100 | U80: 2
A81: 56 | B81: 25.401152 | C81: 80 | E81: 73 | F81: 33.112216 | G81: 66.224432 | I81: 73 | J81: 125 | L81: 73 | M81: 33.112216 | N81: 57 | O81: 46 | P81: 3.6 | R81: 73 | S81: 33.112216 | T81: 100 | U81: 2
A82: 57 | B82: 25.854744 | C82: 80 | E82: 74 | F82: 33.565808 | G82: 67.131616 | I82: 74 | J82: 125 | L82: 74 | M82: 33.565808 | N82: 57 | O82: 46 | P82: 3.6 | R82: 74 | S82: 33.565808 | T82: 100 | U82: 2
A83: 58 | B83: 26.308336 | C83: 80 | E83: 75 | F83: 34.0194 | G83: 68.0388 | I83: 75 | J83: 125 | L83: 75 | M83: 34.0194 | N83: 57 | O83: 46 | P83: 3.6 | R83: 75 | S83: 34.0194 | T83: 100 | U83: 2
A84: 59 | B84: 26.761928 | C84: 80 | E84: 76 | F84: 34.472992 | G84: 68.945984 | I84: 76 | J84: 125 | L84: 76 | M84: 34.472992 | N84: 57 | O84: 46 | P84: 3.6 | R84: 76 | S84: 34.472992 | T84: 100 | U84: 2
A85: 60 | B85: 27.21552 | C85: 80 | E85: 77 | F85: 34.926584 | G85: 69.853168 | I85: 77 | J85: 125 | L85: 77 | M85: 34.926584 | N85: 57 | O85: 46 | P85: 3.6 | R85: 77 | S85: 34.926584 | T85: 100 | U85: 2
A86: 61 | B86: 27.669112 | C86: 80 | E86: 78 | F86: 35.380176 | G86: 70.760352 | I86: 78 | J86: 125 | L86: 78 | M86: 35.380176 | N86: 57 | O86: 46 | P86: 3.6 | R86: 78 | S86: 35.380176 | T86: 100 | U86: 2
A87: 62 | B87: 28.122704 | C87: 80 | E87: 79 | F87: 35.833768 | G87: 71.667536 | I87: 79 | J87: 125 | L87: 79 | M87: 35.833768 | N87: 57 | O87: 46 | P87: 3.6 | R87: 79 | S87: 35.833768 | T87: 100 | U87: 2
A88: 63 | B88: 28.576296 | C88: 80 | E88: 80 | F88: 36.28736 | G88: 72.57472 | I88: 80 | J88: 125 | L88: 80 | M88: 36.28736 | N88: 57 | O88: 46 | P88: 3.6 | R88: 80 | S88: 36.28736 | T88: 100 | U88: 2
A89: 64 | B89: 29.029888 | C89: 80 | E89: 81 | F89: 36.740952 | G89: 73.481904 | I89: 81 | J89: 125 | L89: 81 | M89: 36.740952 | N89: 57 | O89: 46 | P89: 3.6 | R89: 81 | S89: 36.740952 | T89: 100 | U89: 2
A90: 65 | B90: =A90*0.453592 -> 29.48348 | C90: 80 | E90: 82 | F90: 37.194544 | G90: 74.389088 | I90: 82 | J90: 125 | L90: 82 | M90: 37.194544 | N90: 57 | O90: 46 | P90: 3.6 | R90: 82 | S90: 37.194544 | T90: 100 | U90: 2
A91: 66 | B91: 29.937072 | C91: 80 | E91: 83 | F91: 37.648136 | G91: 75.296272 | I91: 83 | J91: 125 | L91: 83 | M91: 37.648136 | N91: 57 | O91: =0.2154*L91+28.265 -> 46.1432 | P91: =0.0161*L91+2.2764 -> 3.6127 | R91: 83 | S91: 37.648136 | T91: 100 | U91: 2
A92: 67 | B92: 30.390664 | C92: 80 | E92: 84 | F92: 38.101728 | G92: 76.203456 | I92: 84 | J92: 125 | L92: 84 | M92: 38.101728 | N92: =0.2648*L92+34.979 -> 57.2222 | O92: 46.3586 | P92: 3.6288 | R92: 84 | S92: 38.101728 | T92: 100 | U92: 2
A93: 68 | B93: 30.844256 | C93: 80 | E93: 85 | F93: 38.55532 | G93: 77.11064 | I93: 85 | J93: 125 | L93: 85 | M93: 38.55532 | N93: 57.487 | O93: 46.574 | P93: 3.6449 | R93: 85 | S93: 38.55532 | T93: 100 | U93: 2
A94: 69 | B94: 31.297848 | C94: 80 | E94: 86 | F94: 39.008912 | G94: 78.017824 | I94: 86 | J94: 125 | L94: 86 | M94: 39.008912 | N94: 57.7518 | O94: 46.7894 | P94: 3.661 | R94: 86 | S94: 39.008912 | T94: 100 | U94: 2
A95: 70 | B95: 31.75144 | C95: 80 | E95: 87 | F95: 39.462504 | G95: 78.925008 | I95: 87 | J95: 125 | L95: 87 | M95: 39.462504 | N95: 58.0166 | O95: 47.0048 | P95: 3.6771 | R95: 87 | S95: 39.462504 | T95: 100 | U95: 2
A96: 71 | B96: 32.205032 | C96: 80 | E96: 88 | F96: 39.916096 | G96: 79.832192 | I96: 88 | J96: 125 | L96: 88 | M96: 39.916096 | N96: 58.2814 | O96: 47.2202 | P96: 3.6932 | R96: 88 | S96: 39.916096 | T96: 100 | U96: 2
A97: 72 | B97: 32.658624 | C97: 80 | E97: 89 | F97: 40.369688 | G97: 80 | I97: 89 | J97: 125 | L97: 89 | M97: 40.369688 | N97: 58.5462 | O97: 47.4356 | P97: 3.7093 | R97: 89 | S97: 40.369688 | T97: 100 | U97: 2
A98: 73 | B98: 33.112216 | C98: 80 | E98: 90 | F98: 40.82328 | G98: 80 | I98: 90 | J98: 125 | L98: 90 | M98: 40.82328 | N98: 58.811 | O98: 47.651 | P98: 3.7254 | R98: 90 | S98: 40.82328 | T98: 100 | U98: 2
A99: 74 | B99: 33.565808 | C99: 80 | E99: 91 | F99: 41.276872 | G99: 80 | I99: 91 | J99: 125 | L99: 91 | M99: 41.276872 | N99: 59.0758 | O99: 47.8664 | P99: 3.7415 | R99: 91 | S99: 41.276872 | T99: 100 | U99: 2
A100: 75 | B100: 34.0194 | C100: 80 | E100: 92 | F100: 41.730464 | G100: 80 | I100: 92 | J100: 150 | L100: 92 | M100: 41.730464 | N100: 59.3406 | O100: 48.0818 | P100: 3.7576 | R100: 92 | S100: 41.730464 | T100: 100 | U100: 2
A101: 76 | B101: 34.472992 | C101: 80 | E101: 93 | F101: 42.184056 | G101: 80 | I101: 93 | J101: 150 | L101: 93 | M101: 42.184056 | N101: 59.6054 | O101: 48.2972 | P101: 3.7737 | R101: 93 | S101: 42.184056 | T101: 100 | U101: 2
A102: 77 | B102: 34.926584 | C102: 80 | E102: 94 | F102: 42.637648 | G102: 80 | I102: 94 | J102: 150 | L102: 94 | M102: 42.637648 | N102: 59.8702 | O102: 48.5126 | P102: 3.7898 | R102: 94 | S102: 42.637648 | T102: 100 | U102: 2
A103: 78 | B103: 35.380176 | C103: 80 | E103: 95 | F103: 43.09124 | G103: 80 | I103: 95 | J103: 150 | L103: 95 | M103: 43.09124 | N103: 60.135 | O103: 48.728 | P103: 3.8059 | R103: 95 | S103: 43.09124 | T103: 100 | U103: 2
A104: 79 | B104: 35.833768 | C104: 80 | E104: 96 | F104: 43.544832 | G104: 80 | I104: 96 | J104: 150 | L104: 96 | M104: 43.544832 | N104: 60.3998 | O104: 48.9434 | P104: 3.822 | R104: 96 | S104: 43.544832 | T104: 100 | U104: 2
A105: 80 | B105: 36.28736 | C105: 80 | E105: 97 | F105: 43.998424 | G105: 80 | I105: 97 | J105: 150 | L105: 97 | M105: 43.998424 | N105: 60.6646 | O105: 49.1588 | P105: 3.8381 | R105: 97 | S105: 43.998424 | T105: 100 | U105: 2
A106: 81 | B106: 36.740952 | C106: 80 | E106: 98 | F106: 44.452016 | G106: 80 | I106: 98 | J106: 150 | L106: 98 | M106: 44.452016 | N106: 60.9294 | O106: 49.3742 | P106: 3.8542 | R106: 98 | S106: 44.452016 | T106: 100 | U106: 2
A107: 82 | B107: 37.194544 | C107: 80 | E107: 99 | F107: 44.905608 | G107: 80 | I107: 99 | J107: 150 | L107: 99 | M107: 44.905608 | N107: 61.1942 | O107: 49.5896 | P107: 3.8703 | R107: 99 | S107: 44.905608 | T107: 100 | U107: 2
A108: 83 | B108: 37.648136 | C108: 80 | E108: 100 | F108: 45.3592 | G108: 80 | I108: 100 | J108: 150 | L108: 100 | M108: 45.3592 | N108: 61.459 | O108: 49.805 | P108: 3.8864 | R108: 100 | S108: 45.3592 | T108: 100 | U108: 2
A109: 84 | B109: 38.101728 | C109: 80 | E109: 101 | F109: 45.812792 | G109: 80 | I109: 101 | J109: 150 | L109: 101 | M109: 45.812792 | N109: 61.7238 | O109: 50.0204 | P109: 3.9025 | R109: 101 | S109: 45.812792 | T109: 100 | U109: 2
A110: 85 | B110: 38.55532 | C110: 80 | E110: 102 | F110: 46.266384 | G110: 80 | I110: 102 | J110: 150 | L110: 102 | M110: 46.266384 | N110: 61.9886 | O110: 50.2358 | P110: 3.9186 | R110: 102 | S110: 46.266384 | T110: 100 | U110: 2
A111: 86 | B111: 39.008912 | C111: 80 | E111: 103 | F111: 46.719976 | G111: 80 | I111: 103 | J111: 150 | L111: 103 | M111: 46.719976 | N111: 62.2534 | O111: 50.4512 | P111: 3.9347 | R111: 103 | S111: 46.719976 | T111: 100 | U111: 2
A112: 87 | B112: 39.462504 | C112: 80 | E112: 104 | F112: 47.173568 | G112: 80 | I112: 104 | J112: 150 | L112: 104 | M112: 47.173568 | N112: 62.5182 | O112: 50.6666 | P112: 3.9508 | R112: 104 | S112: 47.173568 | T112: 100 | U112: 2
A113: 88 | B113: 39.916096 | C113: 80 | E113: 105 | F113: 47.62716 | G113: 80 | I113: 105 | J113: 150 | L113: 105 | M113: 47.62716 | N113: 62.783 | O113: 50.882 | P113: 3.9669 | R113: 105 | S113: 47.62716 | T113: 100 | U113: 2
A114: 89 | B114: 40.369688 | C114: 80 | E114: 106 | F114: 48.080752 | G114: 80 | I114: 106 | J114: 150 | L114: 106 | M114: 48.080752 | N114: 63.0478 | O114: 51.0974 | P114: 3.983 | R114: 106 | S114: 48.080752 | T114: 100 | U114: 2
A115: 90 | B115: 40.82328 | C115: 80 | E115: 107 | F115: 48.534344 | G115: 80 | I115: 107 | J115: 150 | L115: 107 | M115: 48.534344 | N115: 63.3126 | O115: 51.3128 | P115: 3.9991 | R115: 107 | S115: 48.534344 | T115: 100 | U115: 2
A116: 91 | B116: 41.276872 | C116: 80 | E116: 108 | F116: 48.987936 | G116: 80 | I116: 108 | J116: 150 | L116: 108 | M116: 48.987936 | N116: 63.5774 | O116: 51.5282 | P116: 4.0152 | R116: 108 | S116: 48.987936 | T116: 100 | U116: 2
A117: 92 | B117: 41.730464 | C117: 80 | E117: 109 | F117: 49.441528 | G117: 80 | I117: 109 | J117: 150 | L117: 109 | M117: 49.441528 | N117: 63.8422 | O117: 51.7436 | P117: 4.0313 | R117: 109 | S117: 49.441528 | T117: 100 | U117: 2
A118: 93 | B118: 42.184056 | C118: 80 | E118: 110 | F118: 49.89512 | G118: 80 | I118: 110 | J118: 150 | L118: 110 | M118: 49.89512 | N118: 64.107 | O118: 51.959 | P118: 4.0474 | R118: 110 | S118: 49.89512 | T118: 100 | U118: 2
A119: 94 | B119: 42.637648 | C119: 80 | E119: 111 | F119: 50.348712 | G119: 80 | I119: 111 | J119: 150 | L119: 111 | M119: 50.348712 | N119: 64.3718 | O119: 52.1744 | P119: 4.0635 | R119: 111 | S119: 50.348712 | T119: 100 | U119: 2
A120: 95 | B120: 43.09124 | C120: 80 | E120: 112 | F120: 50.802304 | G120: 80 | I120: 112 | J120: 150 | L120: 112 | M120: 50.802304 | N120: 64.6366 | O120: 52.3898 | P120: 4.0796 | R120: 112 | S120: 50.802304 | T120: 100 | U120: 2
A121: 96 | B121: 43.544832 | C121: 80 | E121: 113 | F121: 51.255896 | G121: 80 | I121: 113 | J121: 150 | L121: 113 | M121: 51.255896 | N121: 64.9014 | O121: 52.6052 | P121: 4.0957 | R121: 113 | S121: 51.255896 | T121: 100 | U121: 2
A122: 97 | B122: 43.998424 | C122: 80 | E122: 114 | F122: 51.709488 | G122: 80 | I122: 114 | J122: 150 | L122: 114 | M122: 51.709488 | N122: 65.1662 | O122: 52.8206 | P122: 4.1118 | R122: 114 | S122: 51.709488 | T122: 100 | U122: 2
A123: 98 | B123: 44.452016 | C123: 80 | E123: 115 | F123: 52.16308 | G123: 80 | I123: 115 | J123: 150 | L123: 115 | M123: 52.16308 | N123: 65.431 | O123: 53.036 | P123: 4.1279 | R123: 115 | S123: 52.16308 | T123: 100 | U123: 2
A124: 99 | B124: 44.905608 | C124: 80 | E124: 116 | F124: 52.616672 | G124: 80 | I124: 116 | J124: 150 | L124: 116 | M124: 52.616672 | N124: 65.6958 | O124: 53.2514 | P124: 4.144 | R124: 116 | S124: 52.616672 | T124: 100 | U124: 2
A125: 100 | B125: 45.3592 | C125: 80 | E125: 117 | F125: 53.070264 | G125: 80 | I125: 117 | J125: 150 | L125: 117 | M125: 53.070264 | N125: 65.9606 | O125: 53.4668 | P125: 4.1601 | R125: 117 | S125: 53.070264 | T125: 100 | U125: 2
A126: 101 | B126: 45.812792 | C126: 80 | E126: 118 | F126: 53.523856 | G126: 80 | I126: 118 | J126: 150 | L126: 118 | M126: 53.523856 | N126: 66.2254 | O126: 53.6822 | P126: 4.1762 | R126: 118 | S126: 53.523856 | T126: 100 | U126: 2
A127: 102 | B127: 46.266384 | C127: 80 | E127: 119 | F127: 53.977448 | G127: 80 | I127: 119 | J127: 150 | L127: 119 | M127: 53.977448 | N127: 66.4902 | O127: 53.8976 | P127: 4.1923 | R127: 119 | S127: 53.977448 | T127: 100 | U127: 2
A128: 103 | B128: 46.719976 | C128: 80 | E128: 120 | F128: 54.43104 | G128: 80 | I128: 120 | J128: 150 | L128: 120 | M128: 54.43104 | N128: 66.755 | O128: 54.113 | P128: 4.2084 | R128: 120 | S128: 54.43104 | T128: 100 | U128: 2
A129: 104 | B129: 47.173568 | C129: 80 | E129: 121 | F129: 54.884632 | G129: 80 | I129: 121 | J129: 150 | L129: 121 | M129: 54.884632 | N129: 67.0198 | O129: 54.3284 | P129: 4.2245 | R129: 121 | S129: 54.884632 | T129: 110 | U129: 2.5
A130: 105 | B130: 47.62716 | C130: 80 | E130: 122 | F130: 55.338224 | G130: 80 | I130: 122 | J130: 150 | L130: 122 | M130: 55.338224 | N130: 67.2846 | O130: 54.5438 | P130: 4.2406 | R130: 122 | S130: 55.338224 | T130: 110 | U130: 2.5
A131: 106 | B131: 48.080752 | C131: 80 | E131: 123 | F131: 55.791816 | G131: 80 | I131: 123 | J131: 150 | L131: 123 | M131: 55.791816 | N131: 67.5494 | O131: 54.7592 | P131: 4.2567 | R131: 123 | S131: 55.791816 | T131: 110 | U131: 2.5
A132: 107 | B132: 48.534344 | C132: 80 | E132: 124 | F132: 56.245408 | G132: 80 | I132: 124 | J132: 150 | L132: 124 | M132: 56.245408 | N132: 67.8142 | O132: 54.9746 | P132: 4.2728 | R132: 124 | S132: 56.245408 | T132: 110 | U132: 2.5
A133: 108 | B133: 48.987936 | C133: 80 | E133: 125 | F133: 56.699 | G133: 80 | I133: 125 | J133: 150 | L133: 125 | M133: 56.699 | N133: 68.079 | O133: 55.19 | P133: 4.2889 | R133: 125 | S133: 56.699 | T133: 110 | U133: 2.5
A134: 109 | B134: 49.441528 | C134: 80 | E134: 126 | F134: 57.152592 | G134: 80 | I134: 126 | J134: 150 | L134: 126 | M134: 57.152592 | N134: 68.3438 | O134: 55.4054 | P134: 4.305 | R134: 126 | S134: 57.152592 | T134: 110 | U134: 2.5
A135: 110 | B135: 49.89512 | C135: 80 | E135: 127 | F135: 57.606184 | G135: 80 | I135: 127 | J135: 150 | L135: 127 | M135: 57.606184 | N135: 68.6086 | O135: 55.6208 | P135: 4.3211 | R135: 127 | S135: 57.606184 | T135: 110 | U135: 2.5
A136: 111 | B136: 50.348712 | C136: 80 | E136: 128 | F136: =E136*0.453592 -> 58.059776 | G136: 80 | I136: 128 | J136: 150 | L136: 128 | M136: 58.059776 | N136: 68.8734 | O136: 55.8362 | P136: 4.3372 | R136: 128 | S136: 58.059776 | T136: 110 | U136: 2.5
A137: 112 | B137: 50.802304 | C137: 80 | E137: 129 | F137: 58.513368 | G137: 80 | I137: 129 | J137: 150 | L137: 129 | M137: =L137*0.453592 -> 58.513368 | N137: =0.2648*L137+34.979 -> 69.1382 | O137: =0.2154*L137+28.265 -> 56.0516 | P137: =0.0161*L137+2.2764 -> 4.3533 | R137: 129 | S137: =R137*0.453592 -> 58.513368 | T137: 110 | U137: 2.5
A138: 113 | B138: 51.255896 | C138: 80 | E138: 130 | F138: 58.96696 | G138: 80 | I138: 130 | J138: 150 | L138: 130 | M138: 58.96696 | N138: 69.403 | O138: 56.267 | P138: 4.3694 | R138: 130 | S138: 58.96696 | T138: 110 | U138: 2.5
A139: 114 | B139: 51.709488 | C139: 80 | E139: 131 | F139: 59.420552 | G139: 80 | I139: 131 | J139: 150 | L139: 131 | M139: 59.420552 | N139: 69.6678 | O139: 56.4824 | P139: 4.3855 | R139: 131 | S139: 59.420552 | T139: 110 | U139: 2.5
A140: 115 | B140: 52.16308 | C140: 80 | E140: 132 | F140: 59.874144 | G140: 80 | I140: 132 | J140: 150 | L140: 132 | M140: 59.874144 | N140: 69.9326 | O140: 56.6978 | P140: 4.4016 | R140: 132 | S140: 59.874144 | T140: 110 | U140: 2.5
A141: 116 | B141: 52.616672 | C141: 80 | E141: 133 | F141: 60.327736 | G141: 80 | I141: 133 | J141: 150 | L141: 133 | M141: 60.327736 | N141: 70.1974 | O141: 56.9132 | P141: 4.4177 | R141: 133 | S141: 60.327736 | T141: 110 | U141: 2.5
A142: 117 | B142: 53.070264 | C142: 80 | E142: 134 | F142: 60.781328 | G142: 80 | I142: 134 | J142: 150 | L142: 134 | M142: 60.781328 | N142: 70.4622 | O142: 57.1286 | P142: 4.4338 | R142: 134 | S142: 60.781328 | T142: 110 | U142: 2.5
A143: 118 | B143: 53.523856 | C143: 80 | E143: 135 | F143: 61.23492 | G143: 80 | I143: 135 | J143: 150 | L143: 135 | M143: 61.23492 | N143: 70.727 | O143: 57.344 | P143: 4.4499 | R143: 135 | S143: 61.23492 | T143: 110 | U143: 2.5
A144: 119 | B144: 53.977448 | C144: 80 | E144: 136 | F144: 61.688512 | G144: 80 | I144: 136 | J144: 150 | L144: 136 | M144: 61.688512 | N144: 70.9918 | O144: 57.5594 | P144: 4.466 | R144: 136 | S144: 61.688512 | T144: 110 | U144: 2.5
A145: 120 | B145: 54.43104 | C145: 80 | E145: 137 | F145: 62.142104 | G145: 80 | I145: 137 | J145: 150 | L145: 137 | M145: 62.142104 | N145: 71.2566 | O145: 57.7748 | P145: 4.4821 | R145: 137 | S145: 62.142104 | T145: 110 | U145: 2.5
A146: 121 | B146: 54.884632 | C146: 80 | E146: 138 | F146: 62.595696 | G146: 80 | I146: 138 | J146: 150 | L146: 138 | M146: 62.595696 | N146: 71.5214 | O146: 57.9902 | P146: 4.4982 | R146: 138 | S146: 62.595696 | T146: 110 | U146: 2.5
A147: 122 | B147: 55.338224 | C147: 80 | E147: 139 | F147: 63.049288 | G147: 80 | I147: 139 | J147: 150 | L147: 139 | M147: 63.049288 | N147: 71.7862 | O147: 58.2056 | P147: 4.5143 | R147: 139 | S147: 63.049288 | T147: 110 | U147: 2.5
A148: 123 | B148: 55.791816 | C148: 80 | E148: 140 | F148: 63.50288 | G148: 80 | I148: 140 | J148: 150 | L148: 140 | M148: 63.50288 | N148: 72.051 | O148: 58.421 | P148: 4.5304 | R148: 140 | S148: 63.50288 | T148: 110 | U148: 2.5
A149: 124 | B149: 56.245408 | C149: 80 | E149: 141 | F149: 63.956472 | G149: 80 | I149: 141 | J149: 150 | L149: 141 | M149: 63.956472 | N149: 72.3158 | O149: 58.6364 | P149: 4.5465 | R149: 141 | S149: 63.956472 | T149: 110 | U149: 2.5
A150: 125 | B150: 56.699 | C150: 80 | E150: 142 | F150: 64.410064 | G150: 80 | I150: 142 | J150: 150 | L150: 142 | M150: 64.410064 | N150: 72.5806 | O150: 58.8518 | P150: 4.5626 | R150: 142 | S150: 64.410064 | T150: 110 | U150: 2.5
A151: 126 | B151: 57.152592 | C151: 80 | E151: 143 | F151: 64.863656 | G151: 80 | I151: 143 | J151: 150 | L151: 143 | M151: 64.863656 | N151: 72.8454 | O151: 59.0672 | P151: 4.5787 | R151: 143 | S151: 64.863656 | T151: 125 | U151: 2.5
A152: 127 | B152: 57.606184 | C152: 80 | E152: 144 | F152: 65.317248 | G152: =0.6114*E152+0.1939 -> 88.2355 | I152: 144 | J152: 150 | L152: 144 | M152: 65.317248 | N152: 73.1102 | O152: 59.2826 | P152: 4.5948 | R152: 144 | S152: 65.317248 | T152: 125 | U152: 2.5
A153: 128 | B153: 58.059776 | C153: 80 | E153: 145 | F153: 65.77084 | G153: =0.6114*E153+0.1939 -> 88.8469 | I153: 145 | J153: 150 | L153: 145 | M153: 65.77084 | N153: 73.375 | O153: 59.498 | P153: 4.6109 | R153: 145 | S153: 65.77084 | T153: 125 | U153: 2.5
A154: 129 | B154: =A154*0.453592 -> 58.513368 | C154: 80 | E154: 146 | F154: 66.224432 | G154: 89.4583 | I154: 146 | J154: 150 | L154: 146 | M154: 66.224432 | N154: 73.6398 | O154: 59.7134 | P154: 4.627 | R154: 146 | S154: 66.224432 | T154: 125 | U154: 2.5
A155: 130 | B155: 58.96696 | C155: 80 | E155: 147 | F155: 66.678024 | G155: 90.0697 | I155: 147 | J155: 150 | L155: 147 | M155: 66.678024 | N155: 73.9046 | O155: 59.9288 | P155: 4.6431 | R155: 147 | S155: 66.678024 | T155: 125 | U155: 2.5
A156: 131 | B156: 59.420552 | C156: =0.6114*A156+0.1939 -> 80.2873 | E156: 148 | F156: 67.131616 | G156: 90.6811 | I156: 148 | J156: 150 | L156: 148 | M156: 67.131616 | N156: 74.1694 | O156: 60.1442 | P156: 4.6592 | R156: 148 | S156: 67.131616 | T156: 125 | U156: 2.5
A157: 132 | B157: 59.874144 | C157: 80.8987 | E157: 149 | F157: 67.585208 | G157: 91.2925 | I157: 149 | J157: 150 | L157: 149 | M157: 67.585208 | N157: 74.4342 | O157: 60.3596 | P157: 4.6753 | R157: 149 | S157: 67.585208 | T157: 125 | U157: 2.5
A158: 133 | B158: 60.327736 | C158: 81.5101 | E158: 150 | F158: 68.0388 | G158: 91.9039 | I158: 150 | J158: 150 | L158: 150 | M158: 68.0388 | N158: 74.699 | O158: 60.575 | P158: 4.6914 | R158: 150 | S158: 68.0388 | T158: 125 | U158: 2.5
A159: 134 | B159: 60.781328 | C159: 82.1215 | E159: 151 | F159: 68.492392 | G159: 92.5153 | I159: 151 | J159: 150 | L159: 151 | M159: 68.492392 | N159: 74.9638 | O159: 60.7904 | P159: 4.7075 | R159: 151 | S159: 68.492392 | T159: 125 | U159: 2.5
A160: 135 | B160: 61.23492 | C160: 82.7329 | E160: 152 | F160: 68.945984 | G160: 93.1267 | I160: 152 | J160: 150 | L160: 152 | M160: 68.945984 | N160: 75.2286 | O160: 61.0058 | P160: 4.7236 | R160: 152 | S160: 68.945984 | T160: 125 | U160: 2.5
A161: 136 | B161: 61.688512 | C161: 83.3443 | E161: 153 | F161: 69.399576 | G161: 93.7381 | I161: 153 | J161: 150 | L161: 153 | M161: 69.399576 | N161: 75.4934 | O161: 61.2212 | P161: 4.7397 | R161: 153 | S161: 69.399576 | T161: 125 | U161: 2.5
A162: 137 | B162: 62.142104 | C162: 83.9557 | E162: 154 | F162: 69.853168 | G162: 94.3495 | I162: 154 | J162: 150 | L162: 154 | M162: 69.853168 | N162: 75.7582 | O162: 61.4366 | P162: 4.7558 | R162: 154 | S162: 69.853168 | T162: 125 | U162: 2.5
A163: 138 | B163: 62.595696 | C163: 84.5671 | E163: 155 | F163: 70.30676 | G163: 94.9609 | I163: 155 | J163: 150 | L163: 155 | M163: 70.30676 | N163: 76.023 | O163: 61.652 | P163: 4.7719 | R163: 155 | S163: 70.30676 | T163: 125 | U163: 2.5
A164: 139 | B164: 63.049288 | C164: 85.1785 | E164: 156 | F164: 70.760352 | G164: 95.5723 | I164: 156 | J164: 150 | L164: 156 | M164: 70.760352 | N164: 76.2878 | O164: 61.8674 | P164: 4.788 | R164: 156 | S164: 70.760352 | T164: 125 | U164: 2.5
A165: 140 | B165: 63.50288 | C165: 85.7899 | E165: 157 | F165: 71.213944 | G165: 96.1837 | I165: 157 | J165: 150 | L165: 157 | M165: 71.213944 | N165: 76.5526 | O165: 62.0828 | P165: 4.8041 | R165: 157 | S165: 71.213944 | T165: 125 | U165: 2.5
A166: 141 | B166: 63.956472 | C166: 86.4013 | E166: 158 | F166: 71.667536 | G166: 96.7951 | I166: 158 | J166: 150 | L166: 158 | M166: 71.667536 | N166: 76.8174 | O166: 62.2982 | P166: 4.8202 | R166: 158 | S166: 71.667536 | T166: 125 | U166: 2.5 | Y166: =76*2.2 -> 167.2
A167: 142 | B167: 64.410064 | C167: 87.0127 | E167: 159 | F167: 72.121128 | G167: 97.4065 | I167: 159 | J167: 150 | L167: 159 | M167: 72.121128 | N167: 77.0822 | O167: 62.5136 | P167: 4.8363 | R167: 159 | S167: 72.121128 | T167: 125 | U167: 2.5
A168: 143 | B168: 64.863656 | C168: 87.6241 | E168: 160 | F168: 72.57472 | G168: 98.0179 | I168: 160 | J168: 150 | L168: 160 | M168: 72.57472 | N168: 77.347 | O168: 62.729 | P168: 4.8524 | R168: 160 | S168: 72.57472 | T168: 125 | U168: 2.5
A169: 144 | B169: 65.317248 | C169: 88.2355 | E169: 161 | F169: 73.028312 | G169: 98.6293 | I169: 161 | J169: 150 | L169: 161 | M169: 73.028312 | N169: 77.6118 | O169: 62.9444 | P169: 4.8685 | R169: 161 | S169: 73.028312 | T169: 125 | U169: 2.5
A170: 145 | B170: 65.77084 | C170: 88.8469 | E170: 162 | F170: 73.481904 | G170: 99.2407 | I170: 162 | J170: 150 | L170: 162 | M170: 73.481904 | N170: 77.8766 | O170: 63.1598 | P170: 4.8846 | R170: 162 | S170: 73.481904 | T170: 125 | U170: 2.5
A171: 146 | B171: 66.224432 | C171: 89.4583 | E171: 163 | F171: 73.935496 | G171: 99.8521 | I171: 163 | J171: 150 | L171: 163 | M171: 73.935496 | N171: 78.1414 | O171: 63.3752 | P171: 4.9007 | R171: 163 | S171: 73.935496 | T171: 125 | U171: 2.5
A172: 147 | B172: 66.678024 | C172: 90.0697 | E172: 164 | F172: 74.389088 | G172: 100.4635 | I172: 164 | J172: 150 | L172: 164 | M172: 74.389088 | N172: 78.4062 | O172: 63.5906 | P172: 4.9168 | R172: 164 | S172: 74.389088 | T172: 125 | U172: 2.5
A173: 148 | B173: 67.131616 | C173: 90.6811 | E173: 165 | F173: 74.84268 | G173: 101.0749 | I173: 165 | J173: 150 | L173: 165 | M173: 74.84268 | N173: 78.671 | O173: 63.806 | P173: 4.9329 | R173: 165 | S173: 74.84268 | T173: 125 | U173: 2.5
A174: 149 | B174: 67.585208 | C174: 91.2925 | E174: 166 | F174: 75.296272 | G174: 101.6863 | I174: 166 | J174: 150 | L174: 166 | M174: 75.296272 | N174: 78.9358 | O174: 64.0214 | P174: 4.949 | R174: 166 | S174: 75.296272 | T174: 125 | U174: 2.5
A175: 150 | B175: 68.0388 | C175: 91.9039 | E175: 167 | F175: 75.749864 | G175: 102.2977 | I175: 167 | J175: 150 | L175: 167 | M175: 75.749864 | N175: 79.2006 | O175: 64.2368 | P175: 4.9651 | R175: 167 | S175: 75.749864 | T175: 125 | U175: 2.5
A176: 151 | B176: 68.492392 | C176: 92.5153 | E176: 168 | F176: 76.203456 | G176: 102.9091 | I176: 168 | J176: 150 | L176: 168 | M176: 76.203456 | N176: 79.4654 | O176: 64.4522 | P176: 4.9812 | R176: 168 | S176: 76.203456 | T176: 125 | U176: 2.5
A177: 152 | B177: 68.945984 | C177: 93.1267 | E177: 169 | F177: 76.657048 | G177: 103.5205 | I177: 169 | J177: 150 | L177: 169 | M177: 76.657048 | N177: 79.7302 | O177: 64.6676 | P177: 4.9973 | R177: 169 | S177: 76.657048 | T177: 125 | U177: 2.5
A178: 153 | B178: 69.399576 | C178: 93.7381 | E178: 170 | F178: 77.11064 | G178: 104.1319 | I178: 170 | J178: 150 | L178: 170 | M178: 77.11064 | N178: 79.995 | O178: 64.883 | P178: 5.0134 | R178: 170 | S178: 77.11064 | T178: 125 | U178: 2.5
A179: 154 | B179: 69.853168 | C179: 94.3495 | E179: 171 | F179: 77.564232 | G179: 104.7433 | I179: 171 | J179: 150 | L179: 171 | M179: 77.564232 | N179: 80.2598 | O179: 65.0984 | P179: 5.0295 | R179: 171 | S179: 77.564232 | T179: 125 | U179: 2.5
A180: 155 | B180: 70.30676 | C180: 94.9609 | E180: 172 | F180: 78.017824 | G180: 105.3547 | I180: 172 | J180: 150 | L180: 172 | M180: 78.017824 | N180: 80.5246 | O180: 65.3138 | P180: 5.0456 | R180: 172 | S180: 78.017824 | T180: 125 | U180: 2.5
A181: 156 | B181: 70.760352 | C181: 95.5723 | E181: 173 | F181: 78.471416 | G181: 105.9661 | I181: 173 | J181: 150 | L181: 173 | M181: 78.471416 | N181: 80.7894 | O181: 65.5292 | P181: 5.0617 | R181: 173 | S181: 78.471416 | T181: 125 | U181: 2.5
A182: 157 | B182: 71.213944 | C182: 96.1837 | E182: 174 | F182: 78.925008 | G182: 106.5775 | I182: 174 | J182: 150 | L182: 174 | M182: 78.925008 | N182: 81.0542 | O182: 65.7446 | P182: 5.0778 | R182: 174 | S182: 78.925008 | T182: 125 | U182: 2.5
A183: 158 | B183: 71.667536 | C183: 96.7951 | E183: 175 | F183: 79.3786 | G183: 107.1889 | I183: 175 | J183: 150 | L183: 175 | M183: 79.3786 | N183: 81.319 | O183: 65.96 | P183: 5.0939 | R183: 175 | S183: 79.3786 | T183: 125 | U183: 2.5
A184: 159 | B184: 72.121128 | C184: 97.4065 | E184: 176 | F184: 79.832192 | G184: 107.8003 | I184: 176 | J184: 150 | L184: 176 | M184: 79.832192 | N184: 81.5838 | O184: 66.1754 | P184: 5.11 | R184: 176 | S184: 79.832192 | T184: 125 | U184: 2.5
A185: 160 | B185: 72.57472 | C185: 98.0179 | E185: 177 | F185: 80.285784 | G185: 108.4117 | I185: 177 | J185: 150 | L185: 177 | M185: 80.285784 | N185: 81.8486 | O185: 66.3908 | P185: 5.1261 | R185: 177 | S185: 80.285784 | T185: 125 | U185: 2.5
A186: 161 | B186: 73.028312 | C186: 98.6293 | E186: 178 | F186: 80.739376 | G186: 109.0231 | I186: 178 | J186: 150 | L186: 178 | M186: 80.739376 | N186: 82.1134 | O186: 66.6062 | P186: 5.1422 | R186: 178 | S186: 80.739376 | T186: 125 | U186: 2.5
A187: 162 | B187: 73.481904 | C187: 99.2407 | E187: 179 | F187: 81.192968 | G187: 109.6345 | I187: 179 | J187: 150 | L187: 179 | M187: 81.192968 | N187: 82.3782 | O187: 66.8216 | P187: 5.1583 | R187: 179 | S187: 81.192968 | T187: 125 | U187: 2.5
A188: 163 | B188: 73.935496 | C188: 99.8521 | E188: 180 | F188: 81.64656 | G188: 110.2459 | I188: 180 | J188: 150 | L188: 180 | M188: 81.64656 | N188: 82.643 | O188: 67.037 | P188: 5.1744 | R188: 180 | S188: 81.64656 | T188: 125 | U188: 2.5
A189: 164 | B189: 74.389088 | C189: 100.4635 | E189: 181 | F189: 82.100152 | G189: 110.8573 | I189: 181 | J189: 150 | L189: 181 | M189: 82.100152 | N189: 82.9078 | O189: 67.2524 | P189: 5.1905 | R189: 181 | S189: 82.100152 | T189: 125 | U189: 2.5
A190: 165 | B190: 74.84268 | C190: 101.0749 | E190: 182 | F190: 82.553744 | G190: 111.4687 | I190: 182 | J190: 150 | L190: 182 | M190: 82.553744 | N190: 83.1726 | O190: 67.4678 | P190: 5.2066 | R190: 182 | S190: 82.553744 | T190: 125 | U190: 2.5
A191: 166 | B191: 75.296272 | C191: 101.6863 | E191: 183 | F191: 83.007336 | G191: 112.0801 | I191: 183 | J191: 150 | L191: 183 | M191: 83.007336 | N191: 83.4374 | O191: 67.6832 | P191: 5.2227 | R191: 183 | S191: 83.007336 | T191: 125 | U191: 2.5
A192: 167 | B192: 75.749864 | C192: 102.2977 | E192: 184 | F192: 83.460928 | G192: 112.6915 | I192: 184 | J192: 150 | L192: 184 | M192: 83.460928 | N192: 83.7022 | O192: 67.8986 | P192: 5.2388 | R192: 184 | S192: 83.460928 | T192: 125 | U192: 2.5
A193: 168 | B193: 76.203456 | C193: 102.9091 | E193: 185 | F193: 83.91452 | G193: 113.3029 | I193: 185 | J193: 150 | L193: 185 | M193: 83.91452 | N193: 83.967 | O193: 68.114 | P193: 5.2549 | R193: 185 | S193: 83.91452 | T193: 125 | U193: 2.5
A194: 169 | B194: 76.657048 | C194: 103.5205 | E194: 186 | F194: 84.368112 | G194: 113.9143 | I194: 186 | J194: 150 | L194: 186 | M194: 84.368112 | N194: 84.2318 | O194: 68.3294 | P194: 5.271 | R194: 186 | S194: 84.368112 | T194: 125 | U194: 2.5
A195: 170 | B195: 77.11064 | C195: 104.1319 | E195: 187 | F195: 84.821704 | G195: 114.5257 | I195: 187 | J195: 150 | L195: 187 | M195: 84.821704 | N195: 84.4966 | O195: 68.5448 | P195: 5.2871 | R195: 187 | S195: 84.821704 | T195: 125 | U195: 2.5
A196: 171 | B196: 77.564232 | C196: 104.7433 | E196: 188 | F196: 85.275296 | G196: 115.1371 | I196: 188 | J196: 150 | L196: 188 | M196: 85.275296 | N196: 84.7614 | O196: 68.7602 | P196: 5.3032 | R196: 188 | S196: 85.275296 | T196: 130 | U196: 3
A197: 172 | B197: 78.017824 | C197: 105.3547 | E197: 189 | F197: 85.728888 | G197: 115.7485 | I197: 189 | J197: 150 | L197: 189 | M197: 85.728888 | N197: 85.0262 | O197: 68.9756 | P197: 5.3193 | R197: 189 | S197: 85.728888 | T197: 130 | U197: 3
A198: 173 | B198: 78.471416 | C198: 105.9661 | E198: 190 | F198: 86.18248 | G198: 116.3599 | I198: 190 | J198: 150 | L198: 190 | M198: 86.18248 | N198: 85.291 | O198: 69.191 | P198: 5.3354 | R198: 190 | S198: 86.18248 | T198: 130 | U198: 3
A199: 174 | B199: 78.925008 | C199: 106.5775 | E199: 191 | F199: 86.636072 | G199: 116.9713 | I199: 191 | J199: 150 | L199: 191 | M199: 86.636072 | N199: 85.5558 | O199: 69.4064 | P199: 5.3515 | R199: 191 | S199: 86.636072 | T199: 130 | U199: 3
A200: 175 | B200: 79.3786 | C200: 107.1889 | E200: 192 | F200: =E200*0.453592 -> 87.089664 | G200: 117.5827 | I200: 192 | J200: 150 | L200: 192 | M200: 87.089664 | N200: 85.8206 | O200: 69.6218 | P200: 5.3676 | R200: 192 | S200: 87.089664 | T200: 130 | U200: 3
A201: 176 | B201: 79.832192 | C201: 107.8003 | E201: 193 | F201: 87.543256 | G201: 118.1941 | I201: 193 | J201: 150 | L201: 193 | M201: =L201*0.453592 -> 87.543256 | N201: =0.2648*L201+34.979 -> 86.0854 | O201: =0.2154*L201+28.265 -> 69.8372 | P201: =0.0161*L201+2.2764 -> 5.3837 | R201: 193 | S201: =R201*0.453592 -> 87.543256 | T201: 130 | U201: 3
A202: 177 | B202: 80.285784 | C202: 108.4117 | E202: 194 | F202: 87.996848 | G202: 118.8055 | I202: 194 | J202: 150 | L202: 194 | M202: 87.996848 | N202: 86.3502 | O202: 70.0526 | P202: 5.3998 | R202: 194 | S202: 87.996848 | T202: 130 | U202: 3
A203: 178 | B203: 80.739376 | C203: 109.0231 | E203: 195 | F203: 88.45044 | G203: 119.4169 | I203: 195 | J203: 150 | L203: 195 | M203: 88.45044 | N203: 86.615 | O203: 70.268 | P203: 5.4159 | R203: 195 | S203: 88.45044 | T203: 130 | U203: 3
... 222 more rows

Sheet mappings
A1: ranges for each LUT from weight2Volume sheet | H1: do not edit this column, it is where you link protocols/types with LUT numbers
A2: LUT # | B2: Range | C2: Strength | D2: break point in time (seconds) where volume and rate level off (only populate this field for angio protocols with angio flag = 1) | E2: min time (seconds)below which volume is fixed (only populate if angio flag = 1) | H2: Protocol Names/types | I2: LUT #
A3: 1 | B3: weight2Volume!b25:c425 | C3: 300 | H3: =Protocols!A6 -> Weight Based Routine Adult | I3: 1
A4: 2 | B4: weight2Volume!f8:g408 | C4: 300 | H4: =Protocols!A7 -> Weight Based Routine Ped | I4: 2
A5: 3 | B5: weight2Volume!i8:j208 | C5: 370 | H5: =Protocols!A8 -> Weight Based Angio | I5: 4
A6: 4 | B6: weight2Volume!m8:p408 | C6: 350 | D6: 12 | E6: 7 | H6: =Protocols!A9 -> U Washington Abdomen | I6: 5
A7: 5 | B7: weight2Volume!s8:u408 | C7: 350 | H7: =Protocols!A10 -> 0
A8: 6 | H8: =Protocols!A11 -> 0
A9: 7 | H9: =Protocols!A12 -> 0
A10: 8 | H10: =Protocols!A13 -> 0
A11: 9 | H11: =Protocols!A14 -> 0
A12: 10 | H12: =Protocols!A15 -> 0
A13: 11 | H13: =Protocols!A16 -> 0
A14: 12 | H14: =Protocols!A17 -> 0
A15: 13 | H15: =Protocols!A18 -> 0
A16: 14 | H16: =Protocols!A19 -> 0
A17: 15 | H17: =Protocols!A20 -> 0
A18: 16 | H18: =Protocols!A21 -> 0
A19: 17 | H19: =Protocols!A22 -> 0
A20: 18 | H20: =Protocols!A23 -> 0
A21: 19 | H21: =Protocols!A24 -> 0
A22: 20 | H22: =Protocols!A25 -> 0
A23: 21 | H23: =Protocols!A26 -> 0
A24: 22 | H24: =Protocols!A27 -> 0
A25: 23 | H25: =Protocols!A28 -> 0
A26: 24 | H26: =Protocols!A29 -> 0
A27: 25 | H27: =Protocols!A30 -> 0
A28: 26 | H28: =Protocols!A31 -> 0
A29: 27 | H29: =Protocols!A32 -> 0
A30: 28 | H30: =Protocols!A33 -> 0
A31: 29 | H31: =Protocols!A34 -> 0
A32: 30 | H32: =Protocols!A35 -> 0
A33: 31 | H33: =Protocols!A36 -> 0
A34: 32 | H34: =Protocols!A37 -> 0
A35: 33 | H35: =Protocols!A38 -> 0
A36: 34 | H36: =Protocols!A39 -> 0
A37: 35 | H37: =Protocols!A40 -> 0
A38: 36 | H38: =Protocols!A41 -> 0
A39: 37 | H39: =Protocols!A42 -> 0
A40: 38 | H40: =Protocols!A43 -> 0
A41: 39 | H41: =Protocols!A44 -> 0
A42: 40 | H42: =Protocols!A45 -> 0
A43: 41 | H43: =Protocols!A46 -> 0
A44: 42 | H44: =Protocols!A47 -> 0
A45: 43 | H45: =Protocols!A48 -> 0
A46: 44 | H46: =Protocols!A49 -> 0
A47: 45 | H47: =Protocols!A50 -> 0
A48: 46 | H48: =Protocols!A51 -> 0
A49: 47 | H49: =Protocols!A52 -> 0
A50: 48 | H50: =Protocols!A53 -> 0
A51: 49 | H51: =Protocols!A54 -> 0
A52: 50 | H52: =Protocols!A55 -> 0
A53: 51 | H53: =Protocols!A56 -> 0
A54: 52 | H54: =Protocols!A57 -> 0
A55: 53 | H55: =Protocols!A58 -> 0
A56: 54 | H56: =Protocols!A59 -> 0
A57: 55 | H57: =Protocols!A60 -> 0
A58: 56 | H58: =Protocols!A61 -> 0
A59: 57 | H59: =Protocols!A62 -> 0
A60: 58 | H60: =Protocols!A63 -> 0
A61: 59 | H61: =Protocols!A64 -> 0
A62: 60 | H62: =Protocols!A65 -> 0
A63: 61 | H63: =Protocols!A66 -> 0
A64: 62 | H64: =Protocols!A67 -> 0
A65: 63 | H65: =Protocols!A68 -> 0
A66: 64 | H66: =Protocols!A69 -> 0
A67: 65 | H67: =Protocols!A70 -> 0
A68: 66 | H68: =Protocols!A71 -> 0
A69: 67 | H69: =Protocols!A72 -> 0
A70: 68 | H70: =Protocols!A73 -> 0
A71: 69 | H71: =Protocols!A74 -> 0
A72: 70 | H72: =Protocols!A75 -> 0
A73: 71 | H73: =Protocols!A76 -> 0
A74: 72 | H74: =Protocols!A77 -> 0
A75: 73 | H75: =Protocols!A78 -> 0
A76: 74 | H76: =Protocols!A79 -> 0
A77: 75 | H77: =Protocols!A80 -> 0
A78: 76 | H78: =Protocols!A81 -> 0
A79: 77 | H79: =Protocols!A82 -> 0
A80: 78 | H80: =Protocols!A83 -> 0
A81: 79 | H81: =Protocols!A84 -> 0
A82: 80 | H82: =Protocols!A85 -> 0
A83: 81 | H83: =Protocols!A86 -> 0
A84: 82 | H84: =Protocols!A87 -> 0
A85: 83 | H85: =Protocols!A88 -> 0
A86: 84 | H86: =Protocols!A89 -> 0
A87: 85 | H87: =Protocols!A90 -> 0
A88: 86 | H88: =Protocols!A91 -> 0
A89: 87 | H89: =Protocols!A92 -> 0
A90: 88 | H90: =Protocols!A93 -> 0
A91: 89 | H91: =Protocols!A94 -> 0
A92: 90 | H92: =Protocols!A95 -> 0
A93: 91 | H93: =Protocols!A96 -> 0
A94: 92 | H94: =Protocols!A97 -> 0
A95: 93 | H95: =Protocols!A98 -> 0
A96: 94 | H96: =Protocols!A99 -> 0
A97: 95 | H97: =Protocols!A100 -> 0
A98: 96 | H98: =Protocols!A101 -> 0
A99: 97 | H99: =Protocols!A102 -> 0
A100: 98 | H100: =Protocols!A103 -> 0
A101: 99 | H101: =Protocols!A104 -> 0
A102: 100 | H102: =Protocols!A105 -> 0

Sheet about
B3: need a formal page here for public release
B6: a tim stick production
B7: Megan Lipford, Sean Rose
B8: Carrie Bartels
B10: thanks "Meghan's" husband for the ped images!
